Workbook

Sheet MYP, MSS
B1: Eetu Mutikainen | E1: 18.8.2001 Hämeenlinna
B2: YKKÖSPESIS | E2: Runkosarja | L2: Runkosarja TOP-10 | Q2: Jatkosarjat | X2: SUOMENSARJA | AA2: Runkosarja | AH2: Runkosarja TOP-10 | AM2: Jatkosarjat
B3: Vuosi | C3: Sija | D3: Seura | E3: OTT | F3: KUN | G3: LÖI | H3: TOI | I3: KL | J3: KL-% | L3: LÖI | M3: TOI | N3: L+T | O3: KL | Q3: OTT | R3: KUN | S3: LÖI | T3: TOI | U3: KL | V3: KL-% | X3: Vuosi | Y3: Sija | Z3: Seura | AA3: OTT | AB3: KUN | AC3: LÖI | AD3: TOI | AE3: KL | AF3: KL-% | AH3: LÖI | AI3: TOI | AJ3: L+T | AK3: KL | AM3: OTT | AN3: KUN | AO3: LÖI | AP3: TOI | AQ3: KL | AR3: KL-%
X4: 2018 | Y4: 3. | Z4: JoKo 2 | AA4: 13 | AB4: 1 | AC4: 7 | AD4: 4 | AE4: 27 | AF4: 42.9 % | AG4: =PRODUCT(AE4/AF4) -> 63 | AM4: 2 | AN4: 0 | AO4: 0 | AP4: 0 | AQ4: 2 | AR4: 25.0 % | AS4: =PRODUCT(AQ4/AR4) -> 8
X5: 2019 | Y5: 7. | Z5: JoKo Jun | AA5: 16 | AB5: 2 | AC5: 15 | AD5: 6 | AE5: 41 | AF5: 41.0 % | AG5: 100
X6: 2020 | Y6: 11. | Z6: JoKo Jun | AA6: 8 | AB6: 0 | AC6: 4 | AD6: 2 | AE6: 17 | AF6: 32.1 % | AG6: 53
X7: 2021 | Y7: 7. | Z7: JoKo Jun | AA7: 16 | AB7: 0 | AC7: 4 | AD7: 16 | AE7: 57 | AF7: 57.0 % | AG7: 100
X8: 2022 | Y8: 9. | Z8: JoKo Jun | AA8: 17 | AB8: 1 | AC8: 8 | AD8: 15 | AE8: 75 | AF8: 59.1 % | AG8: 127
B9: 2023 | C9: 12. | D9: LP Jun | E9: 9 | F9: 0 | G9: 0 | H9: 1 | I9: 11 | J9: 37.9 % | K9: 29 | X9: 2023 | Y9: 7. | Z9: JoKo Jun | AA9: 11 | AB9: 0 | AC9: 6 | AD9: 9 | AE9: 43 | AF9: 72.9 % | AG9: 59
B10: YHTEENSÄ | E10: =SUM(E4:E9) -> 9 | F10: =SUM(F4:F9) -> 0 | G10: 0 | H10: 1 | I10: 11 | J10: =PRODUCT(I10/K10) -> 37.9 % | K10: =SUM(K9:K9) -> 29 | Q10: =SUM(Q4:Q9) -> 0 | R10: =SUM(R4:R9) -> 0 | S10: 0 | T10: 0 | U10: 0 | V10: 0.0 % | W10: =SUM(W9:W9) -> 0 | X10: YHTEENSÄ | AA10: =SUM(AA4:AA9) -> 81 | AB10: =SUM(AB4:AB9) -> 4 | AC10: 44 | AD10: 52 | AE10: 260 | AF10: =PRODUCT(AE10/AG10) -> 51.8 % | AG10: 502.0105018 | AM10: =SUM(AM4:AM9) -> 2 | AN10: =SUM(AN4:AN9) -> 0 | AO10: 0 | AP10: 0 | AQ10: 2 | AR10: =PRODUCT(AQ10/AS10) -> 25.0 % | AS10: =SUM(AS4:AS9) -> 8
B12: KAIKKI OTTELUT | E12: OTT | F12: KUN | G12: LÖI | H12: TOI | I12: KL | J12: KL-% | L12: ka/L | M12: ka/T | N12: ka/l+t | O12: ka/kl | R12: Seurat | T12: JoKo = Jokioisten Koetus (1902), kasvattajaseura
B13: SUPERPESIS | E13: 0 | F13: 0 | G13: 0 | H13: 0 | I13: 0 | J13: 0.0 % | L13: 0.00 | M13: 0.00 | N13: 0.00 | O13: 0.00 | T13: JoKo Jun = Jokioisten Koetus Juniorit (2018)
B14: YKKÖSPESIS | E14: =PRODUCT(E10+Q10) -> 9 | F14: =PRODUCT(F10+R10) -> 0 | G14: =PRODUCT(G10+S10) -> 0 | H14: =PRODUCT(H10+T10) -> 1 | I14: =PRODUCT(I10+U10) -> 11 | J14: =PRODUCT(I14/K14) -> 37.9 % | K14: =PRODUCT(K10+W10) -> 29 | L14: =PRODUCT((F14+G14)/E14) -> 0.00 | M14: =PRODUCT(H14/E14) -> 0.11 | N14: =PRODUCT((F14+G14+H14)/E14) -> 0.11 | O14: =PRODUCT(I14/E14) -> 1.22
B15: SUOMENSARJA | E15: =PRODUCT(AA10+AM10) -> 83 | F15: =PRODUCT(AB10+AN10) -> 4 | G15: =PRODUCT(AC10+AO10) -> 44 | H15: =PRODUCT(AD10+AP10) -> 52 | I15: =PRODUCT(AE10+AQ10) -> 262 | J15: =PRODUCT(I15/K15) -> 51.4 % | K15: =PRODUCT(AG10+AS10) -> 510.0105018 | L15: =PRODUCT((F15+G15)/E15) -> 0.58 | M15: =PRODUCT(H15/E15) -> 0.63 | N15: =PRODUCT((F15+G15+H15)/E15) -> 1.20 | O15: =PRODUCT(I15/E15) -> 3.16
B16: YHTEENSÄ | E16: =SUM(E13:E15) -> 92 | F16: =SUM(F13:F15) -> 4 | G16: 44 | H16: 53 | I16: 273 | J16: =PRODUCT(I16/K16) -> 50.6 % | K16: =SUM(K13:K15) -> 539.0105018 | L16: =PRODUCT((F16+G16)/E16) -> 0.52 | M16: =PRODUCT(H16/E16) -> 0.58 | N16: =PRODUCT((F16+G16+H16)/E16) -> 1.10 | O16: =PRODUCT(I16/E16) -> 2.97
